[Event "1. Bamberg-Open 2018"]
[Site "Bamberg"]
[Date "2018.05.10"]
[Round "2"]
[White "Scholz, Christian"]
[Black "Chennaoui, Yasin"]
[Result "1-0"]
[ECO "D30"]
[WhiteElo "2388"]
[BlackElo "2103"]
[Annotator "RC"]
[PlyCount "60"]
[EventDate "2018.??.??"]
[EventType "swiss"]
[EventCountry "GER"]
[SourceTitle "playchess.com"]
[Source "ChessBase"]
[SourceQuality "1"]
[TimeControl "40/5400+30:900+30"]

1. d4 {[%emt 0:00:00]} Nf6 {[%emt 0:00:11]} 2. c4 {[%emt 0:00:00]} e6 {[%emt 0:00:06]} 3. Nf3 {[%emt 0:00:14]} d5 {[%emt 0:00:18]} 4. Bg5 {[%emt 0:00:47]} Be7 {[%emt 0:00:37]} 5. cxd5 {[%emt 0:00:19]} exd5 {[%emt 0:00:34]} 6. Qc2 {[%emt 0:00:12]} c6 {[%emt 0:01:04]} 7. e3 {[%emt 0:00:20]} Nbd7 {[%emt 0:01:38]} 8. Bd3 {[%emt 0:00:14]} Nh5 {[%emt 0:04:14]} 9. Bxe7 {[%emt 0:04:10]} Qxe7 {[%emt 0:00:07]} 10. O-O {[%emt 0:04:48]} g6 {[%emt 0:01:53]} 11. e4 {[%emt 0:08:16]} dxe4 {[%emt 0:05:45]} 12. Bxe4 {[%emt 0:00:06]} O-O {[%emt 0:02:04]} 13. Re1 {[%emt 0:01:37]} Qd6 {[%emt 0:16:03]} 14. Nbd2 {[%emt 0:07:20]} Nb6 {[%emt 0:02:07]} 15. a4 {[%emt 0:02:10]} Bg4 {[%emt 0:07:18]} 16. a5 {[%emt 0:03:50]} Bxf3 {[%emt 0:05:33]} 17. Bxf3 {[%emt 0:01:02]} Nd5 {[%emt 0:01:06]} 18. Ne4 {[%emt 0:08:36]} Qf4 {[%emt 0:02:04]} 19. a6 {[%emt 0:05:56]} Nb4 {[%emt 0:13:34]} 20. Qb3 {[%emt 0:02:19]} Nxa6 {[%emt 0:03:06]} 21. Bxh5 {[%emt 0:01:24]} gxh5 {[%emt 0:01:03]} 22. Qxb7 {[%emt 0:00:07]} f5 {[%emt 0:01:08]} 23. Nf6+ {[%emt 0:00:07]} Rxf6 {[%emt 0:00:34]} 24. Qxa8+ {[%emt 0:00:06]} Rf8 {[%emt 0:02:21]} 25. Re8 {[%emt 0:00:12]} Nb8 {[%emt 0:00:27]} 26. Rxf8+ {[%emt 0:00:14]} Kxf8 {[%emt 0:00:07]} 27. g3 {[%emt 0:00:08]} Qd6 {[%emt 0:00:51]} 28. Rxa7 {[%emt 0:00:13]} Ke8 {[%emt 0:00:07]} 29. Rb7 {[%emt 0:00:13]} Kd8 {[%emt 0:00:07]} 30. Rxb8+ {[%emt 0:00:12]} Qxb8 {[%emt 0:00:07]} 1-0

[Event "1. Bamberg-Open 2018"]
[Site "Bamberg"]
[Date "2018.05.10"]
[Round "2"]
[White "Gegenfurtner, Juergen"]
[Black "Roehl, Rainer"]
[Result "1-0"]
[ECO "B32"]
[WhiteElo "2289"]
[BlackElo "2080"]
[Annotator "NA"]
[PlyCount "69"]
[EventDate "2018.??.??"]
[EventType "swiss"]
[EventCountry "GER"]
[SourceTitle "playchess.com"]
[Source "ChessBase"]
[SourceQuality "1"]
[TimeControl "40/5400+30:900+30"]

{[%evp 8,54,25,32767,32767,32767,32767,32767,32767,32767,32767,32767,32767,89,106,122,121,122,134,77,81,86,159,164,156,156,166,158,170,147,147,103,150,139,144,154,157,125,132,8,14,2,10,0,64,54,72,43,109]} 1. e4 {[%emt 0:00:00]} c5 {[%emt 0:00:06]} 2. Nf3 {[%emt 0:00:00]} Nc6 {[%emt 0:00:25]} 3. d4 {[%emt 0:00:00]} cxd4 {[%emt 0:00:02]} 4. Nxd4 {[%emt 0:00:00]} e5 {[%emt 0:00:15] LiveBook: 5731 Games} 5. Nb5 a6 {[%emt 0:00:12]} 6. Nd6+ {[%emt 0:08:50]} Bxd6 {[%emt 0:00:04]} 7. Qxd6 {[%emt 0:00:06]} Qf6 {[%emt 0:00:08]} 8. Qd1 {[%emt 0:06:52]} Qg6 {[%emt 0:01:40]} 9. Nc3 {[%emt 0:00:52]} Nf6 {[%emt 0:00:09]} 10. Qd6 {[%emt 0:04:37]} Nh5 {[%emt 0:01:10] B32: Sicilian: Löwenthal and Kalashnikov Variations} 11. Qxg6 {[%emt 0:02:12]} hxg6 {[%emt 0:03:28]} 12. Be3 {[%emt 0:08:15]} Nf6 {[%emt 0:10:53]} 13. Bb6 $146 {[%emt 0:09:47]} ({Predecessor:} 13. Bc5 b5 14. a3 Bb7 15. O-O-O O-O-O 16. Be2 Nb8 17. Bf3 d5 18. exd5 {1-0 (28) Yagupov,I (2512)-Domogaev,S (2340) Tula 2005}) 13... d6 {[%emt 0:10:07]} 14. O-O-O {[%emt 0:01:03]} Be6 {[%emt 0:01:39]} (14... Ke7 $142) 15. Rxd6 {[%emt 0:01:39]} Nd7 {[%emt 0:00:34]} 16. Be3 {[%emt 0:03:28]} Ke7 {[%emt 0:00:06]} 17. Rd2 {[%emt 0:01:14]} f5 {[%emt 0:03:38]} 18. Bg5+ {[%emt 0:08:53]} Nf6 {[%emt 0:05:47]} 19. Be2 {[%emt 0:09:08]} (19. f4 $18) 19... Rac8 {[%emt 0:06:38]} 20. f4 {[%emt 0:03:57]} Kf7 {[%emt 0:03:08]} 21. Bf3 {[%emt 0:02:39]} Nh7 {[%emt 0:04:44]} 22. Bh4 {[%emt 0:10:55]} exf4 {[%emt 0:02:11]} 23. Re1 {[%emt 0:00:24]} (23. exf5 $16 gxf5 24. Re1) 23... g5 $1 {[%emt 0:02:25]} 24. Bf2 {[%emt 0:04:05]} Nf6 {[%emt 0:02:00]} 25. h3 {[%emt 0:01:45]} g4 $14 {[%emt 0:07:38]} ({Black should try} 25... Rce8 $11) 26. exf5 {[%emt 0:00:06]} Bxf5 {[%emt 0:00:02]} 27. hxg4 {[%emt 0:00:07]} Nxg4 {[%emt 0:00:13]} 28. Bb6 {[%emt 0:03:47]} Nf6 {[%emt 0:04:04]} 29. Nd5 {[%emt 0:00:21]} Nxd5 {[%emt 0:00:56]} 30. Bxd5+ {[%emt 0:00:31]} Kg6 {[%emt 0:01:17]} 31. Bb3 {[%emt 0:02:02]} Rce8 {[%emt 0:03:40]} 32. Rf1 {[%emt 0:00:36]} Bg4 {[%emt 0:01:57]} 33. Rd6+ {[%emt 0:01:58]} Kg5 {[%emt 0:01:01]} 34. Rd5+ {[%emt 0:00:05]} Re5 {[%emt 0:04:11]} 35. Bc7 {[%emt 0:00:21]} 1-0

[Event "1. Bamberg-Open 2018"]
[Site "Bamberg"]
[Date "2018.05.10"]
[Round "2"]
[White "Schulz, Lukas"]
[Black "Boehme, Markus"]
[Result "1-0"]
[ECO "C36"]
[WhiteElo "2276"]
[BlackElo "2071"]
[Annotator "ChessBase"]
[PlyCount "79"]
[EventDate "2018.??.??"]
[EventType "swiss"]
[EventCountry "GER"]
[SourceTitle "playchess.com"]
[Source "ChessBase"]
[SourceQuality "1"]
[TimeControl "40/5400+30:900+30"]

1. e4 {[%emt 0:00:00]} e5 {[%emt 0:00:11]} 2. f4 {[%emt 0:00:00]} d5 {[%emt 0:00:25]} 3. exd5 {[%emt 0:00:11]} exf4 {[%emt 0:00:16]} 4. Nf3 {[%emt 0:00:26]} Nf6 {[%emt 0:00:45]} 5. Bb5+ {[%emt 0:00:16]} c6 {[%emt 0:00:36]} 6. dxc6 {[%emt 0:00:06]} Nxc6 {[%emt 0:00:18]} 7. d4 {[%emt 0:01:04]} Bd6 {[%emt 0:00:38]} 8. O-O {[%emt 0:01:02]} O-O {[%emt 0:00:12]} 9. c3 {[%emt 0:06:50]} Bg4 {[%emt 0:07:26]} 10. Nbd2 {[%emt 0:00:31]} Rc8 {[%emt 0:23:43]} 11. Bd3 {[%emt 0:13:54]} Re8 {[%emt 0:02:06]} 12. Re1 {[%emt 0:07:08]} Qd7 {[%emt 0:15:07]} 13. Ne4 {[%emt 0:06:05]} Nxe4 {[%emt 0:00:40]} 14. Rxe4 {[%emt 0:08:12]} Bf5 {[%emt 0:02:11]} 15. Rxe8+ {[%emt 0:00:40]} Rxe8 {[%emt 0:00:07]} 16. Qc2 {[%emt 0:00:44]} Ne7 {[%emt 0:08:12]} 17. Bd2 {[%emt 0:01:29]} Bxd3 {[%emt 0:01:03]} 18. Qxd3 {[%emt 0:00:04]} h6 {[%emt 0:03:38]} 19. Re1 {[%emt 0:02:33]} Nd5 {[%emt 0:05:48]} 20. Kf2 {[%emt 0:10:43]} Nf6 {[%emt 0:02:17]} 21. Kf1 {[%emt 0:13:37]} Rxe1+ {[%emt 0:04:00]} 22. Bxe1 {[%emt 0:01:59]} Qe6 {[%emt 0:02:30]} 23. c4 {[%emt 0:03:13]} g5 {[%emt 0:02:11]} 24. d5 {[%emt 0:03:37]} Qe3 {[%emt 0:10:13]} 25. Qxe3 {[%emt 0:00:55]} fxe3 {[%emt 0:00:05]} 26. g3 {[%emt 0:03:24]} b5 {[%emt 0:03:11]} 27. Bc3 {[%emt 0:04:19]} Ne8 {[%emt 0:02:58]} 28. cxb5 {[%emt 0:02:11]} Nc7 {[%emt 0:00:28]} 29. a4 {[%emt 0:00:56]} Bc5 {[%emt 0:01:52]} 30. Bd4 {[%emt 0:01:14]} Bxd4 {[%emt 0:01:27]} 31. Nxd4 {[%emt 0:00:04]} Nxd5 {[%emt 0:00:09]} 32. Ke2 {[%emt 0:00:37]} Kf8 {[%emt 0:00:36]} 33. Nc6 {[%emt 0:00:49]} Nb6 {[%emt 0:00:40]} 34. a5 {[%emt 0:01:10]} Nc8 {[%emt 0:00:55]} 35. Nxa7 Nxa7 {[%emt 0:00:01]} 36. b6 {[%emt 0:01:47]} Nc6 {[%emt 0:00:43]} 37. a6 {[%emt 0:00:08]} Nd4+ {[%emt 0:00:32]} 38. Kxe3 {[%emt 0:00:12]} Nf5+ {[%emt 0:00:25]} 39. Kd3 {[%emt 0:00:19]} Ne7 {[%emt 0:00:48]} 40. a7 {[%emt 0:00:08]} 1-0

[Event "1. Bamberg-Open 2018"]
[Site "Bamberg"]
[Date "2018.05.10"]
[Round "2"]
[White "Maier, Alexander"]
[Black "Voelz, Stephan"]
[Result "1-0"]
[ECO "B21"]
[WhiteElo "2267"]
[BlackElo "1917"]
[Annotator "NA"]
[PlyCount "37"]
[EventDate "2018.??.??"]
[EventType "swiss"]
[EventCountry "GER"]
[SourceTitle "playchess.com"]
[Source "ChessBase"]
[SourceQuality "1"]
[TimeControl "40/5400+30:900+30"]

{[%evp 14,37,-1,32767,38,52,35,35,25,49,66,43,89,62,107,56,87,70,116,32767,208,167,483,510,523,513]} 1. e4 c5 {[%emt 0:00:11]} 2. d4 {[%emt 0:02:22]} cxd4 {[%emt 0:00:26]} 3. c3 {[%emt 0:00:05]} Nf6 {[%emt 0:00:42]} 4. e5 {[%emt 0:00:13]} Nd5 {[%emt 0:00:09]} 5. Nf3 {[%emt 0:00:07]} d6 {[%emt 0:05:01]} 6. cxd4 {[%emt 0:02:33]} Nc6 {[%emt 0:02:57]} 7. Bc4 {[%emt 0:01:47]} Nb6 {[%emt 0:04:34]} 8. Bb5 {[%emt 0:01:26]} a6 {[%emt 0:06:07]} 9. Bxc6+ $1 {[%emt 0:03:09]} bxc6 {[%emt 0:03:30]} 10. Qc2 {[%emt 0:03:13] LiveBook: 7 Games B22: Sicilian: 2 c3} Bb7 {[%emt 0:05:33]} (10... Qc7 11. O-O d5 12. h3 a5 13. a4 Ba6 14. Re1 e6 15. b3 Bb4 16. Bd2 Nd7 17. Bxb4 axb4 {0-1 (33) Cherniaev,A (2431)-Smeets,J (2593) London 2008}) 11. e6 {[%emt 0:21:10]} f6 {[%emt 0:07:07]} 12. Nc3 $146 {[%emt 0:11:57]} ({Predecessor:} 12. O-O g6 13. h4 Qc8 14. Re1 c5 15. Qb3 Qc6 16. dxc5 dxc5 17. Nc3 Rd8 {1-0 (28) Kusenkova,N (2047)-Revo,T (2038) Minsk 2011}) 12... Qc7 {[%emt 0:08:11]} 13. a4 {[%emt 0:12:27]} Rc8 {[%emt 0:12:24]} 14. Qd3 {[%emt 0:08:09]} (14. a5 $16 Nd5 15. O-O) 14... Nd5 {[%emt 0:07:00]} 15. Nxd5 {[%emt 0:04:12]} cxd5 {[%emt 0:00:07]} 16. O-O {[%emt 0:00:21]} Qc2 {[%emt 0:04:05]} (16... g6 $16) 17. Qa3 {[%emt 0:01:25]} Rc4 $2 {[%emt 0:01:58]} (17... g5 $16) 18. Bd2 {[%emt 0:04:16]} Bc8 $18 {[%emt 0:04:19]} 19. b3 {[%emt 0:00:51]} 1-0

[Event "1. Bamberg-Open 2018"]
[Site "Bamberg"]
[Date "2018.05.10"]
[Round "2"]
[White "Goldbeck, Lars"]
[Black "Gebhardt, Christian"]
[Result "1-0"]
[ECO "D02"]
[WhiteElo "2247"]
[BlackElo "1899"]
[Annotator "NA"]
[PlyCount "81"]
[EventDate "2018.??.??"]
[EventType "swiss"]
[EventCountry "GER"]
[SourceTitle "playchess.com"]
[Source "ChessBase"]
[SourceQuality "1"]
[TimeControl "40/5400+30:900+30"]

{[%evp 11,57,17,13,-37,14,29,29,-30,27,-10,23,4,29,0,33,0,0,0,0,-9,0,0,32767,32767,0,22,173,106,107,116,32767,32767,32767,169,154,183,226,44,225,226,246,236,252,252,271,281,251,285]} 1. d4 {[%emt 0:00:00]} Nf6 {[%emt 0:00:32]} 2. Nf3 {[%emt 0:00:00]} d5 {[%emt 0:01:02]} 3. Bf4 {[%emt 0:00:36]} c5 {[%emt 0:00:48]} 4. e3 {[%emt 0:00:01]} Nc6 {[%emt 0:00:36]} 5. Nc3 {[%emt 0:00:56]} a6 {[%emt 0:14:37] D02: 1 d4 d5 2 Nf3 sidelines, including 2...Nf6 3 g3 and 2...Nf6 3 Bf4} (5... Bg4 6. Be2 e6 7. O-O Bxf3 8. Bxf3 cxd4 9. exd4 Bd6 10. Be3 a6 11. Ne2 Qc7 12. g3 O-O 13. Nc1 b5 14. Nd3 b4 15. Kg2 Rfc8 16. Qe2 Qb6 17. Rfc1 {½-½ (115) Kovalev,V (2641)-Onischuk,A (2685) Khanty-Mansiysk 2017}) 6. Ne5 {[%emt 0:08:49]} e6 {[%emt 0:04:39] LiveBook: 4 Games} 7. Bd3 {[%emt 0:08:23]} c4 $146 {[%emt 0:06:28]} (7... Nxe5 $15 8. dxe5 Nd7) ({Predecessor:} 7... cxd4 8. Nxc6 bxc6 9. exd4 Qb6 10. Be5 Nd7 11. Rb1 Nxe5 12. dxe5 {0-1 (45) Spivak,I (2346)-Meissner,F (2238) Germany 2014}) 8. Be2 {[%emt 0:00:37]} Bb4 {[%emt 0:00:16]} (8... Bd7 $5) 9. O-O {[%emt 0:07:23]} Bxc3 {[%emt 0:09:00]} 10. bxc3 {[%emt 0:00:03]} Ne4 {[%emt 0:00:13]} 11. Qe1 {[%emt 0:07:09]} Qa5 {[%emt 0:08:08]} 12. Bh5 {[%emt 0:02:12]} O-O {[%emt 0:05:14]} 13. f3 {[%emt 0:04:03]} Nf6 $1 {[%emt 0:05:33]} 14. Bg4 {[%emt 0:00:39]} Nxe5 {[%emt 0:01:07]} 15. Bxe5 {[%emt 0:00:05]} Nxg4 {[%emt 0:00:11]} 16. fxg4 {[%emt 0:00:02]} f6 {[%emt 0:01:35]} 17. Bd6 {[%emt 0:00:52]} Rf7 {[%emt 0:01:48]} 18. g5 {[%emt 0:07:52]} Bd7 $2 {[%emt 0:03:05] [#]} (18... f5 $11 {and Black is okay.}) 19. gxf6 $1 {[%emt 0:01:06]} gxf6 {[%emt 0:03:10] [#]} 20. Rf3 {[%emt 0:06:22]} (20. Rf4 $1 $18) 20... Be8 {[%emt 0:04:39]} 21. h3 {[%emt 0:02:24]} Rd8 {[%emt 0:03:40]} 22. Bb4 {[%emt 0:05:45]} (22. Qh4 $142 Kh8 23. Bb4) 22... Qc7 {[%emt 0:01:18]} 23. Qh4 {[%emt 0:01:08]} f5 {[%emt 0:01:25]} 24. Qh6 $2 {[%emt 0:04:50]} ({White must play} 24. Rg3+ $18 Kh8 25. Rg6) 24... Bd7 $2 {[%emt 0:03:58] [#]} (24... Ba4 $14) 25. Bd6 $1 {[%emt 0:00:25]} Qxd6 {[%emt 0:01:30]} 26. Qg5+ {[%emt 0:00:11]} Kh8 {[%emt 0:01:04]} 27. Qxd8+ {[%emt 0:00:04]} Rf8 {[%emt 0:00:09]} 28. Qg5 {[%emt 0:00:20]} Ba4 {[%emt 0:02:04]} 29. Rg3 $18 {[%emt 0:00:55]} Qc7 {[%emt 0:00:56]} 30. Rb1 {[%emt 0:05:10]} b5 {[%emt 0:03:16]} 31. Rc1 {[%emt 0:01:06]} Qf7 {[%emt 0:00:11]} 32. Qf4 {[%emt 0:01:21]} Qf6 {[%emt 0:01:23]} 33. Kf2 {[%emt 0:00:41]} h6 {[%emt 0:01:08]} 34. Ke2 {[%emt 0:01:48]} Kh7 {[%emt 0:00:13]} 35. Kd2 {[%emt 0:00:31]} Rf7 {[%emt 0:00:58]} 36. h4 {[%emt 0:01:52]} Rg7 {[%emt 0:01:03]} 37. Rf1 {[%emt 0:00:31]} Rxg3 {[%emt 0:02:14]} 38. Qxg3 {[%emt 0:01:42]} Qe7 {[%emt 0:02:53]} 39. h5 {[%emt 0:00:58]} Qg5 {[%emt 0:01:16]} 40. Rf3 {[%emt 0:00:22]} Kg7 {[%emt 0:15:55]} 41. Qe5+ {[%emt 0:15:21]} 1-0

[Event "1. Bamberg-Open 2018"]
[Site "Bamberg"]
[Date "2018.05.10"]
[Round "2"]
[White "Hovsepyan, Vardan"]
[Black "Achatz, Michael"]
[Result "1-0"]
[ECO "C42"]
[WhiteElo "2244"]
[BlackElo "1858"]
[Annotator "NA"]
[PlyCount "107"]
[EventDate "2018.??.??"]
[EventType "swiss"]
[EventCountry "GER"]
[SourceTitle "playchess.com"]
[Source "ChessBase"]
[SourceQuality "1"]
[TimeControl "40/5400+30:900+30"]

{[%evp 10,91,54,32767,32767,32767,32767,32767,32767,32767,32767,32767,32767,23,52,45,52,42,71,57,63,50,56,50,37,39,41,54,67,62,84,38,102,114,124,89,99,160,213,199,217,98,32767,136,113,100,131,75,110,116,139,138,139,149,168,159,32767,32767,32767,32767,32767,32767,32767,32767,32767,32767,32767,32767,32767,32767,32767,32767,32767,32767,32767,32767,32767,32767,32767,32767,32767,402,354,406]} 1. e4 {[%emt 0:00:00]} e5 {[%emt 0:00:13]} 2. Nf3 {[%emt 0:00:00]} Nf6 {[%emt 0:00:22]} 3. Nc3 {[%emt 0:00:12]} Bb4 {[%emt 0:00:27]} 4. Nxe5 {[%emt 0:00:47]} Qe7 {[%emt 0:02:19]} 5. Nd3 {[%emt 0:02:01]} Bxc3 {[%emt 0:03:12] LiveBook: 23 Games} 6. dxc3 {[%emt 0:00:08]} Qxe4+ {[%emt 0:01:19]} 7. Qe2 {[%emt 0:00:27]} O-O {[%emt 0:02:31] C42: Petroff Defence: 3 Nxe5 and unusual White 3rd moves} 8. Qxe4 {[%emt 0:01:19]} Nxe4 {[%emt 0:00:08]} 9. Bf4 {[%emt 0:00:23]} d6 {[%emt 0:01:32]} 10. f3 {[%emt 0:01:32]} Nf6 {[%emt 0:01:18]} 11. O-O-O $146 {[%emt 0:00:55]} ({Predecessor:} 11. Kf2 Nc6 12. Be2 Be6 13. Bd2 Rfe8 14. g4 Ne5 15. b3 {½-½ (44) Adams,P-Mannion,S (2350) Oban 2000}) 11... Nc6 {[%emt 0:04:54]} 12. Bg5 {[%emt 0:04:54]} Nd7 {[%emt 0:03:58]} 13. Bh4 {[%emt 0:06:25]} Nb6 {[%emt 0:04:38]} 14. Nf4 {[%emt 0:01:53]} Bd7 {[%emt 0:07:32]} 15. b3 {[%emt 0:02:20]} Ne5 {[%emt 0:05:34]} 16. c4 {[%emt 0:04:08]} Ng6 {[%emt 0:05:07]} 17. Nxg6 {[%emt 0:01:05]} hxg6 {[%emt 0:00:41]} 18. Bg3 {[%emt 0:06:05]} Rac8 {[%emt 0:05:01]} 19. h4 {[%emt 0:04:05]} Rfe8 {[%emt 0:05:18]} 20. Bf4 {[%emt 0:05:39]} f5 {[%emt 0:05:24]} 21. Bd3 {[%emt 0:03:38]} Kf7 {[%emt 0:04:12]} 22. a4 {[%emt 0:01:32]} Bc6 {[%emt 0:03:01]} 23. h5 {[%emt 0:00:58]} Nd7 {[%emt 0:04:08]} (23... Rh8 $16) 24. hxg6+ {[%emt 0:01:35]} Kxg6 {[%emt 0:00:29] [#]} 25. g4 {[%emt 0:00:25]} (25. Rh5 $1 $18 {is the precise move to win.}) 25... Kf6 {[%emt 0:06:30]} 26. Bxf5 {[%emt 0:01:56]} Rcd8 {[%emt 0:01:17]} 27. Rdf1 {[%emt 0:10:57]} ({White should try} 27. Rh5 $18) 27... Ne5 {[%emt 0:00:50]} 28. Bxe5+ {[%emt 0:01:53]} Rxe5 {[%emt 0:00:35]} 29. Rh2 {[%emt 0:00:38]} Rde8 {[%emt 0:04:11]} 30. Kd2 {[%emt 0:00:48]} d5 {[%emt 0:04:46]} 31. f4 {[%emt 0:01:21]} Re3 {[%emt 0:02:03]} 32. Bd3 {[%emt 0:00:47]} Rg3 {[%emt 0:03:52]} 33. g5+ {[%emt 0:03:36]} Kf7 {[%emt 0:00:02]} 34. Re2 {[%emt 0:02:28]} Rxe2+ {[%emt 0:01:44]} 35. Kxe2 {[%emt 0:00:07]} d4 {[%emt 0:00:26]} 36. a5 {[%emt 0:01:12]} Rg2+ {[%emt 0:01:42]} 37. Rf2 {[%emt 0:00:25]} Rg1 {[%emt 0:00:45]} 38. Rh2 {[%emt 0:01:08]} Bd7 {[%emt 0:03:42]} 39. Kf2 {[%emt 0:02:32]} Ra1 {[%emt 0:00:35]} 40. g6+ {[%emt 0:00:09]} Kg8 {[%emt 0:18:09]} 41. Rh5 {[%emt 0:15:22]} c6 {[%emt 0:00:00]} 42. Re5 {[%emt 0:00:00]} Kf8 {[%emt 0:00:00]} 43. Kf3 {[%emt 0:00:00]} Rg1 {[%emt 0:00:00]} 44. f5 {[%emt 0:00:00]} b6 {[%emt 0:00:00]} 45. axb6 {[%emt 0:02:30]} axb6 {[%emt 0:00:00]} 46. c5 $18 {[%emt 0:00:14]} b5 {[%emt 0:00:00]} 47. Re4 {[%emt 0:01:38]} Rg5 {[%emt 0:00:00]} 48. Rxd4 {[%emt 0:00:09]} Ke7 {[%emt 0:00:00]} 49. Kf4 {[%emt 0:00:20]} Rg2 {[%emt 0:00:00]} 50. Ke5 {[%emt 0:02:12]} Rf2 {[%emt 0:00:00]} 51. Rh4 {[%emt 0:00:40]} Rf3 {[%emt 0:00:00]} 52. Rh7 {[%emt 0:00:12]} Kf8 {[%emt 0:00:00]} 53. Rh8+ {[%emt 0:00:04]} Ke7 {[%emt 0:00:00]} 54. Rg8 {[%emt 0:00:04]} 1-0

[Event "1. Bamberg-Open 2018"]
[Site "Bamberg"]
[Date "2018.05.10"]
[Round "2"]
[White "Brenner, Markus"]
[Black "Schulz, Karsten"]
[Result "1/2-1/2"]
[ECO "B07"]
[WhiteElo "2079"]
[BlackElo "2246"]
[Annotator "NA"]
[PlyCount "99"]
[EventDate "2018.??.??"]
[EventType "swiss"]
[EventCountry "GER"]
[SourceTitle "playchess.com"]
[Source "ChessBase"]
[SourceQuality "1"]
[TimeControl "40/5400+30:900+30"]

{[%evp 8,99,46,26,30,32767,32767,32767,32767,32767,32767,32767,32767,32767,32767,32767,32767,32767,32767,38,32767,70,83,61,74,70,83,87,89,88,109,76,93,69,83,53,64,45,48,32767,59,30,81,76,86,77,32767,54,137,60,58,0,118,0,32767,32767,32767,32767,32767,32767,32767,32767,32767,32767,32767,32767,32767,32767,32767,32767,32767,32767,32767,32767,32767,32767,32767,32767,32767,32767,32767,32767,32767,74,108,42,37,69,32767,32767,8,9,48,42]} 1. e4 {[%emt 0:00:00]} d6 {[%emt 0:00:29]} 2. d4 {[%emt 0:00:00]} Nf6 {[%emt 0:00:07]} 3. Nc3 {[%emt 0:00:00]} e5 {[%emt 0:00:09]} 4. Nf3 {[%emt 0:00:47]} exd4 {[%emt 0:00:06]} 5. Nxd4 {[%emt 0:00:08]} Be7 {[%emt 0:00:07] LiveBook: 2422 Games} 6. g3 {[%emt 0:00:37]} O-O {[%emt 0:00:07]} 7. Bg2 {[%emt 0:00:13]} Re8 {[%emt 0:00:07]} 8. O-O {[%emt 0:00:32]} c6 {[%emt 0:00:31]} 9. h3 {[%emt 0:01:43]} Bf8 {[%emt 0:00:46]} 10. Re1 {[%emt 0:00:49]} Nbd7 {[%emt 0:00:34]} 11. a4 {[%emt 0:01:11]} a5 {[%emt 0:00:08] B07: Pirc Defence: Miscellaneous Systems} 12. b3 {[%emt 0:00:39]} (12. g4 g6 13. Bf4 Nc5 14. Qd2 Qb6 {0-1 (37) Robson,R (2628)-Gelashvili,T (2572) Arlington 2013}) 12... Nc5 {[%emt 0:04:43]} 13. Bf4 {[%emt 0:01:05]} Nfd7 {[%emt 0:06:26]} 14. Qd2 {[%emt 0:03:35]} Ne5 {[%emt 0:01:57]} 15. Rad1 $146 {[%emt 0:01:10]} Qc7 {[%emt 0:01:23]} 16. g4 {[%emt 0:05:56]} Bd7 {[%emt 0:02:05]} 17. Bg3 {[%emt 0:02:23]} f6 {[%emt 0:05:16]} 18. f4 {[%emt 0:03:35]} Nf7 {[%emt 0:00:50]} 19. Qf2 {[%emt 0:01:34]} Rad8 {[%emt 0:02:36]} 20. Kh2 {[%emt 0:09:59]} Bc8 {[%emt 0:12:10]} 21. Bf3 {[%emt 0:11:45]} Qb6 {[%emt 0:04:23]} 22. Qd2 {[%emt 0:04:31]} g6 {[%emt 0:01:33]} 23. Nb1 {[%emt 0:02:11]} Bh6 {[%emt 0:10:47]} 24. Qc3 {[%emt 0:02:40]} Bg7 {[%emt 0:03:29]} 25. Na3 {[%emt 0:01:05]} Qc7 {[%emt 0:06:14]} 26. Nc4 {[%emt 0:01:17]} b6 {[%emt 0:03:33]} 27. Bg2 {[%emt 0:06:13]} Bb7 {[%emt 0:03:42] [#]} (27... Ba6 $14) 28. Qd2 {[%emt 0:17:06]} (28. b4 $1 $16 {[%cal Rb4c5]} axb4 29. Qxb4) 28... Ba6 {[%emt 0:04:21]} 29. Qc3 {[%emt 0:00:45]} (29. Na3 $14) 29... Bb7 {[%emt 0:02:05]} 30. Qd2 {[%emt 0:00:09]} Re7 {[%emt 0:00:49]} 31. Qf2 {[%emt 0:07:11]} Rde8 {[%emt 0:01:22]} 32. Nd2 {[%emt 0:00:20]} Qc8 {[%emt 0:04:18]} 33. Bf3 {[%emt 0:00:42]} d5 {[%emt 0:00:47]} 34. exd5 {[%emt 0:00:36]} cxd5 {[%emt 0:00:15]} 35. Nb5 {[%emt 0:03:22]} Ne4 {[%emt 0:01:44]} 36. Bxe4 {[%emt 0:00:29]} dxe4 {[%emt 0:00:07]} 37. Nc4 {[%emt 0:00:41]} e3 {[%emt 0:01:08]} 38. Rxe3 {[%emt 0:01:06]} Rxe3 {[%emt 0:00:32]} 39. Nxe3 {[%emt 0:00:37]} Qc5 {[%emt 0:02:05]} 40. Nd5 {[%emt 0:01:56]} Qxf2+ {[%emt 0:17:37]} 41. Bxf2 {[%emt 0:15:17]} Re2 {[%emt 0:00:32]} 42. Kg3 {[%emt 0:01:47]} Rxc2 {[%emt 0:00:14]} 43. Bxb6 {[%emt 0:00:52]} Rb2 {[%emt 0:02:13]} 44. Bxa5 {[%emt 0:03:49]} Rxb3+ {[%emt 0:04:27]} 45. Kh2 {[%emt 0:03:14]} h5 {[%emt 0:02:12]} 46. Bc3 {[%emt 0:00:36]} (46. gxh5 $16 gxh5 47. Bc3) 46... hxg4 {[%emt 0:00:51]} 47. hxg4 {[%emt 0:00:01]} Nh6 {[%emt 0:00:53]} 48. Ne3 {[%emt 0:01:07]} Bc6 {[%emt 0:01:18]} 49. Rd8+ {[%emt 0:00:00]} Kh7 $14 50. Rc8 1/2-1/2